bitfinex/quotes_ETHUSD_20250508
["timestamp","ask_amount","ask_price","bid_price","bid_amount"]
[1746734927111,5.52352875,2119.8,2119.3,4.71850967]
[1746734927318,4.71765356,2119.7,2119.3,4.71850967]
[1746734927953,4.71992087,2118.7,2118.3,4.72066749]
[1746734928109,5.26809389,2119.5,2118.2,1.1553]
[1746734928110,0.55,2118.9,2118.2,0.39]
[1746734928298,0.7994,2119.7,2119.1,4.71897208]
[1746734928500,0.7994,2119.7,2119.1,4.71891017]
[1746734928847,1.12392338,2119.8,2119.4,4.71819141]
[1746734928998,6.3219,2120.0,2119.6,4.71770603]
[1746734929199,0.7566,2120.8,2120.5,4.71574981]
[1746734929402,0.7566,2121.2,2120.3,3.0]
[1746734929600,4.71574838,2120.6,2120.2,3.0]
[1746734929799,4.71574838,2120.6,2120.1,3.0]
[1746734929800,1.69971181,2120.6,2120.1,3.0]
[1746734930000,0.7781,2121.0,2120.1,3.04716266]
[1746734930236,4.71529977,2120.8,2120.1,0.04716092]
[1746734930421,4.71529977,2120.8,2120.3,4.71617539]
[1746734931135,4.71532138,2120.8,2120.3,4.71629978]
[1746734931435,0.7781,2121.0,2120.0,3.0]
[1746734931639,4.71554214,2120.7,2120.2,4.71649355]
[1746734931811,1.2980744,2120.7,2120.3,4.71626446]
[1746734932017,4.71509592,2120.9,2120.4,4.71607126]
[1746734932338,4.71524954,2120.8,2120.3,4.71624901]
[1746734933139,4.71507309,2120.9,2120.4,4.71604634]
[1746734933546,4.71497948,2120.9,2120.3,4.71616298]
[1746734933706,4.71542035,2120.8,2120.3,4.71616298]
[1746734933905,5.73627033,2120.8,2120.3,4.71616298]
[1746734934807,4.71548315,2120.7,2120.2,4.71652736]
[1746734935039,4.71548315,2120.7,2120.1,4.71667793]
[1746734935244,4.71548315,2120.7,2120.0,5.528]
[1746734935245,5.73615775,2120.8,2120.3,4.71629639]
[1746734935552,0.7781,2121.0,2120.1,11.17143706]
[1746734935754,4.71513415,2120.9,2120.4,4.71606561]
[1746734936060,4.71551106,2120.7,2120.3,4.71631211]
[1746734936350,4.71545696,2120.7,2120.2,0.41812766]
[1746734936507,0.7501,2121.1,2120.2,0.46528714]
[1746734936708,0.90143978,2121.1,2120.2,4.71653617]
[1746734936969,4.71551371,2120.7,2120.2,0.7748]
[1746734937247,4.71403884,2121.4,2120.2,0.7748]
[1746734937248,4.71520181,2120.8,2120.2,0.7748]
[1746734937422,4.71520181,2120.8,2120.1,0.41812766]
[1746734937423,0.52652018,2120.7,2120.1,0.41812766]
[1746734937605,4.71565709,2120.6,2120.2,4.716492]
[1746734937808,4.71565709,2120.6,2120.1,5.13477084]
[1746734938250,4.71599954,2120.5,2120.1,0.41812766]
[1746734938541,4.71599954,2120.5,2120.0,10.23580563]
[1746734939046,4.71566686,2120.6,2120.0,10.23580563]
[1746734939047,4.71611139,2120.4,2120.0,10.23580563]
[1746734939202,4.71665828,2120.2,2119.9,0.8251]
[1746734939408,0.55,2120.8,2119.7,0.14743669]
[1746734939609,4.71665762,2120.2,2119.7,5.13566138]
[1746734940023,4.71586889,2120.5,2119.7,8.13575753]
[1746734940223,4.7167169,2120.2,2119.7,8.13575753]
[1746734940544,0.55,2120.3,2119.7,8.51]
[1746734940715,5.24303178,2120.3,2119.7,13.22764237]
[1746734940911,4.71665637,2120.2,2119.7,8.51]
[1746734941107,0.52661885,2120.3,2119.5,4.7180065]
[1746734941341,4.71777344,2119.7,2119.4,0.7943]
[1746734941542,4.71711187,2120.0,2119.4,3.84147855]
[1746734941740,4.71711187,2120.0,2119.5,9.43584171]
[1746734941942,4.71711187,2120.0,2119.6,4.71785847]
[1746734942146,4.71667798,2120.2,2119.8,4.71739914]
[1746734942325,4.71644116,2120.3,2119.8,4.71739914]
[1746734942510,4.7165686,2120.2,2119.8,4.71739914]
[1746734942718,4.7165686,2120.2,2119.8,4.7174228]
[1746734942919,4.71644462,2120.3,2119.8,4.71723908]
[1746734943140,10.25755782,2120.7,2120.1,4.71675864]
[1746734943462,10.25744077,2120.7,2119.7,3.0]
[1746734943609,10.25744077,2120.7,2119.7,7.71744554]
[1746734943610,4.71587716,2120.5,2119.7,7.71744554]
[1746734943815,5.542,2120.7,2119.7,3.0]
[1746734944044,10.25755821,2120.7,2120.2,4.71641657]
[1746734944251,5.542,2120.7,2120.3,4.71631356]
[1746734944549,4.71566466,2120.6,2120.2,0.8022]
[1746734944850,4.71528248,2120.8,2120.3,4.71629345]
[1746734945049,4.71528248,2120.8,2120.3,4.76333573]
[1746734945246,4.71528248,2120.8,2120.2,11.01660315]
[1746734945421,4.71533755,2120.8,2120.4,4.71608798]
[1746734945627,0.55,2121.0,2120.3,4.71618358]
[1746734945839,4.71573815,2120.6,2120.2,11.01658662]
[1746734946054,4.71573815,2120.6,2120.3,16.25]
[1746734946650,4.7156699,2120.6,2120.3,16.25]
[1746734947351,4.71555298,2120.7,2120.3,16.25]
[1746734947653,4.71554406,2120.7,2120.3,16.25]
[1746734947818,4.71568928,2120.6,2120.3,16.25]
[1746734948018,4.71555674,2120.7,2120.3,16.25]
[1746734948651,4.71462506,2121.1,2120.6,4.7155114]
[1746734948853,4.71485884,2121.0,2120.7,16.25]
[1746734949150,5.54490181,2120.8,2120.6,16.25]
[1746734949320,6.29141903,2120.7,2120.6,16.25]
[1746734949516,4.71698113,2120.0,2119.9,13.36175984]
[1746734951474,4.71887319,2119.2,2118.7,10.20173163]
[1746734951658,0.55,2119.9,2118.9,4.71928161]
[1746734951659,4.71808941,2119.6,2118.9,4.71928161]
[1746734951862,5.26788336,2119.6,2119.1,4.71886829]
[1746734952077,4.71818381,2119.5,2119.0,4.71903113]
[1746734952373,4.71821311,2119.5,2119.0,4.71903113]
[1746734952549,4.71823721,2119.5,2119.0,4.71903113]
[1746734952754,4.71823721,2119.5,2119.0,4.71904759]
[1746734953072,4.71823721,2119.5,2119.0,9.43821786]
[1746734953276,4.71823721,2119.5,2119.0,4.71901069]
[1746734953490,0.55,2119.7,2119.1,4.71892799]
[1746734953674,5.26748946,2119.8,2119.2,4.71859354]
[1746734954258,4.71764872,2119.7,2119.1,10.72448906]
[1746734954459,4.71803513,2119.6,2119.1,10.72448906]
[1746734954656,4.71797014,2119.6,2119.1,10.72448906]
[1746734954973,4.71797014,2119.6,2118.6,4.71999051]
[1746734954974,0.55,2119.4,2118.6,4.71999051]
[1746734955176,4.7188579,2119.2,2118.5,6.00560316]
[1746734955354,4.7188579,2119.2,2118.7,4.71976532]
[1746734955876,4.71922948,2119.0,2118.6,0.42000435]
[1746734956043,4.71899974,2119.1,2118.6,0.42000435]
[1746734956044,4.7189932,2119.1,2118.6,3.42000435]
[1746734956248,0.783,2119.9,2119.2,0.7549]
[1746734956444,0.783,2120.2,2119.4,3.0]
[1746734956660,0.783,2120.2,2119.7,3.0]
[1746734956880,0.8067,2120.6,2119.9,9.00560316]
[1746734957080,4.71600816,2120.5,2120.1,4.71665794]
[1746734957296,0.8067,2120.6,2119.9,3.0]
[1746734957587,0.7848,2120.9,2120.2,6.00560316]
[1746734957760,3.12097438,2121.4,2120.8,6.00560316]
[1746734957962,9.54496223,2121.5,2121.0,4.71464593]
[1746734958162,8.76016223,2121.5,2120.9,7.71483514]
[1746734958484,4.04649872,2121.5,2121.4,9.00560316]
[1746734959079,4.04649872,2121.5,2121.0,9.2255]
[1746734960068,8.76021816,2121.5,2121.0,9.2255]
[1746734960265,8.76022359,2121.5,2121.0,3.7635]
[1746734960585,9.63636149,2121.5,2121.0,9.2225]
[1746734960790,4.71391216,2121.4,2121.0,9.2225]
[1746734961016,3.0,2121.9,2120.6,12.24350316]
[1746734961198,4.71421023,2121.3,2120.8,5.458]
[1746734961493,5.26342383,2121.6,2120.8,5.458]
[1746734961669,4.71489733,2121.0,2120.8,5.458]
[1746734962150,4.71513979,2120.9,2120.3,6.82500316]
[1746734962357,0.55,2121.3,2120.5,5.453]
[1746734962558,4.71490412,2121.0,2120.5,5.453]
[1746734962892,4.71542415,2120.7,2120.3,0.8194]
[1746734963195,4.71542415,2120.7,2120.3,3.8194]
[1746734963505,4.71160301,2122.5,2120.4,13.36175984]
[1746734963682,4.71160301,2122.5,2120.7,3.0]
[1746734963683,4.71445412,2121.2,2120.7,3.0]
[1746734963884,4.71445412,2121.2,2120.7,7.76256985]
[1746734964599,4.71507657,2120.9,2120.7,0.04714781]
[1746734964798,4.71507657,2120.9,2120.6,3.0]
[1746734964799,4.71499447,2120.9,2120.6,9.11]
[1746734965003,4.71542415,2120.7,2120.6,6.11]
[1746734965171,4.71532389,2120.8,2120.6,6.11]
[1746734965372,4.71619207,2120.4,2120.1,11.45060316]
[1746734965804,4.71641302,2120.3,2120.2,3.0]
[1746734966107,4.71686147,2120.1,2119.9,6.11]
[1746734966318,1.71363633,2120.8,2119.7,6.2567]
[1746734966319,4.71698641,2120.0,2119.7,6.2567]
[1746734966478,4.71718931,2120.0,2119.7,6.2567]
[1746734966684,4.71727924,2119.9,2119.7,6.2567]
[1746734967013,5.26565417,2120.6,2119.7,5.443]
[1746734967179,4.71678612,2120.1,2119.7,10.16050323]
[1746734967370,4.71701067,2120.0,2119.7,5.443]
[1746734967767,4.71664858,2120.2,2119.8,0.0471693]
[1746734968100,4.71690061,2120.1,2119.8,0.0471693]
[1746734968305,4.71698641,2120.0,2119.7,5.443]
[1746734968476,0.55,2120.7,2119.8,6.00560316]
[1746734968682,5.26548623,2120.7,2119.8,6.00560316]
[1746734968879,4.71603583,2120.5,2120.0,4.71694876]
[1746734969080,4.71547616,2120.7,2120.1,6.76060316]
[1746734969265,1.75413633,2120.8,2120.2,6.15716061]
[1746734969266,4.71533232,2120.8,2120.2,6.15716061]
[1746734969471,5.463,2121.0,2120.5,3.0]
[1746734969688,4.71453491,2121.1,2120.6,6.11]
[1746734970010,4.71486159,2121.0,2120.6,6.15715303]
[1746734970301,0.8001,2121.2,2120.6,6.11]
[1746734970517,4.71542415,2120.7,2120.6,6.11]
[1746734970722,7.71409191,2121.3,2120.6,6.11]
[1746734970884,4.71440165,2121.2,2120.7,0.8197]
[1746734971079,4.71407278,2121.4,2120.8,13.36175984]
[1746734971292,4.71401391,2121.4,2120.9,4.71495053]
[1746734971493,4.71352538,2121.6,2121.0,18.12364328]
[1746734971810,4.71352208,2121.6,2121.1,18.07618218]
[1746734972009,4.71336226,2121.7,2121.2,7.76136961]
[1746734972383,5.463,2122.3,2121.5,6.00560316]
[1746734972711,4.71298704,2121.8,2121.5,6.11]
[1746734973011,4.71288434,2121.9,2121.5,6.11]
[1746734973012,4.7128767,2121.9,2121.6,6.11]
[1746734973309,4.71320167,2121.7,2121.6,6.11]
[1746734973471,4.71307619,2121.8,2121.6,6.11]
[1746734974785,4.71320167,2121.7,2121.6,6.11]
[1746734974989,4.71308688,2121.8,2121.6,6.11]
[1746734975577,4.71320167,2121.7,2121.6,6.11]
[1746734975978,4.71320167,2121.7,2121.6,13.36175984]
[1746734976212,4.7127009,2122.0,2121.6,13.36175984]
[1746734977007,4.71233186,2122.1,2121.6,18.07502777]
[1746734977214,4.712612,2122.0,2121.6,13.36175984]
[1746734977411,4.71276777,2121.9,2121.6,13.36175984]
[1746734978396,4.71263079,2122.0,2121.6,13.36175984]
[1746734978609,5.463,2122.3,2121.8,4.7128597]
[1746734978922,4.71150848,2122.5,2122.0,4.71235194]
[1746734979092,4.71150848,2122.5,2122.1,0.04711517]
[1746734979484,0.09774448,2122.6,2122.1,0.04711517]
[1746734979485,0.09774448,2122.6,2122.3,3.0]
[1746734979705,4.7114252,2122.5,2122.4,13.11175984]
[1746734979924,7.7114252,2122.5,2122.4,13.11175984]
[1746734980080,4.7114252,2122.5,2122.4,13.11175984]
[1746734981811,5.2614252,2122.5,2122.4,13.11175984]
[1746734982014,7.49866129,2122.5,2122.4,13.11175984]
[1746734982583,10.49866129,2122.5,2122.4,13.11175984]
[1746734983921,8.4705252,2122.5,2122.4,13.11175984]
[1746734984138,4.7114252,2122.5,2122.4,13.11175984]
[1746734985425,5.2614252,2122.5,2122.4,13.11175984]
[1746734985625,9.0556252,2122.5,2122.4,13.11175984]
[1746734985823,4.71275743,2121.9,2121.8,13.11175984]
[1746734986044,5.26275743,2121.9,2121.8,6.11]
[1746734986430,5.26275743,2121.9,2121.3,13.11175984]
[1746734986431,4.7138682,2121.4,2121.3,13.11175984]
[1746734990219,3.7138682,2121.4,2121.3,13.11175984]
[1746734991117,4.71371002,2121.5,2121.3,13.11175984]
[1746734991118,4.7136745,2121.5,2121.3,13.11175984]
[1746734992449,4.7138682,2121.4,2121.3,13.11175984]
[1746734992750,4.7136745,2121.5,2121.3,13.11175984]
[1746734993753,4.7138682,2121.4,2121.3,13.11175984]
[1746734995357,5.46785108,2122.2,2121.4,4.713753]
[1746734995529,4.71261601,2122.0,2121.6,4.71325645]
[1746734995727,4.71339369,2121.7,2121.5,13.86445984]
[1746734995926,4.71186919,2122.3,2121.5,13.86445984]
[1746734996132,4.71312509,2121.8,2121.5,13.86445984]
[1746734996319,4.71327646,2121.7,2121.5,13.86445984]
[1746734996520,4.71342383,2121.6,2121.5,13.86445984]
[1746734996719,4.71330663,2121.7,2121.5,13.86445984]
[1746734996950,0.55,2122.1,2121.5,13.86445984]
[1746734997160,4.71342383,2121.6,2121.5,13.11175984]
[1746734997327,4.7130568,2121.8,2121.5,13.11175984]
[1746734997971,4.71331493,2121.7,2121.5,13.11175984]
[1746734998265,4.71332914,2121.7,2121.5,13.11175984]
[1746734998767,4.71342383,2121.6,2121.5,13.11175984]
[1746734999421,4.713291,2121.7,2121.5,13.11175984]
[1746735000169,4.713291,2121.7,2121.6,13.11175984]
[1746735000468,5.263291,2121.7,2121.4,13.11175984]
[1746735000672,5.263291,2121.7,2120.6,2.23151594]
[1746735000673,5.26409041,2121.3,2121.2,13.11175984]
[1746735001031,6.05799041,2121.3,2121.2,13.11175984]
[1746735001729,4.71520181,2120.8,2120.7,13.11175984]
[1746735001931,4.71463943,2121.1,2120.7,17.82717441]
[1746735002164,0.7939,2121.3,2120.8,13.11175984]
[1746735002336,4.71497948,2120.9,2120.8,13.11175984]
[1746735002538,0.94262782,2121.7,2120.9,0.7594]
[1746735002775,5.38,2122.4,2121.8,4.71284709]
[1746735002981,4.71236077,2122.1,2121.8,6.11]
[1746735003288,5.38,2122.4,2121.8,6.11]
[1746735003289,4.71258144,2122.0,2121.8,6.11]
[1746735003791,4.71258144,2122.0,2121.5,6.11]
[1746735003792,4.71342383,2121.6,2121.5,6.11]
[1746735003946,4.71424555,2121.3,2121.0,13.11175984]
[1746735004147,4.71352711,2121.6,2121.1,10.8714855]
[1746735004348,4.71152661,2122.5,2121.1,10.8714855]
[1746735004349,0.77,2122.1,2121.2,3.0]
[1746735004572,4.71297954,2121.8,2121.2,13.11175984]
[1746735004878,4.71375686,2121.5,2121.2,13.11175984]
[1746735005175,4.7138682,2121.4,2121.3,6.11]
[1746735005938,4.71430995,2121.3,2121.0,13.11175984]
[1746735006141,4.71441305,2121.2,2121.0,13.11175984]
[1746735006343,4.71378908,2121.5,2121.0,19.51851289]
[1746735007050,4.71378908,2121.5,2121.1,0.41968108]
[1746735007249,4.71388125,2121.4,2121.1,0.41968108]
[1746735007449,4.71342403,2121.6,2121.0,14.80384582]
[1746735007688,4.71444466,2121.2,2121.0,13.11175984]
[1746735007843,0.55,2121.3,2120.7,5.33]
[1746735008189,0.55,2121.3,2119.2,5.84240954]
[1746735008190,4.23924057,2120.5,2119.2,5.84240954]
[1746735008336,9.74170748,2121.2,2119.4,1.19340843]
[1746735008337,13.72369705,2119.5,2119.4,1.19340843]
[1746735008544,7.71853914,2119.3,2119.2,5.84240954]
[1746735008768,10.53731656,2119.3,2119.2,5.84240954]
[1746735008950,7.71853914,2119.3,2119.2,5.84240954]
[1746735009375,8.49583914,2119.3,2119.2,5.84240954]
[1746735009680,9.64350443,2119.3,2119.2,5.84240954]
[1746735011300,14.67144889,2119.3,2119.2,5.84240954]
[1746735011461,4.72024846,2118.6,2118.0,0.8088]
[1746735012793,4.72032205,2118.5,2118.0,0.8088]
[1746735013294,4.72095068,2118.3,2118.0,3.8088]
[1746735013492,4.72057768,2118.4,2118.0,4.72158]
[1746735013865,4.7209977,2118.2,2118.0,4.72158]
[1746735014198,4.7208762,2118.3,2118.0,4.72158]
[1746735014890,4.7208762,2118.3,2118.0,1.72158]
[1746735015091,4.72065476,2118.4,2118.0,0.8088]
[1746735015292,4.72078558,2118.3,2118.0,0.8088]
[1746735015593,4.7212124,2118.1,2118.0,0.8088]
[1746735016794,4.71959442,2118.9,2118.2,4.72091235]
[1746735016997,4.71959442,2118.9,2118.4,0.7873]
[1746735016998,4.71954924,2118.9,2118.4,0.7873]
[1746735017162,0.79360975,2119.3,2118.4,0.7873]
[1746735017359,4.72001253,2118.7,2118.4,3.7873]
[1746735017560,4.71910865,2119.1,2118.5,0.04719637]
[1746735017763,3.71926407,2119.0,2118.5,1.55810912]
[1746735018073,3.71926407,2119.0,2118.5,1.51091275]
[1746735018277,3.71926407,2119.0,2118.6,3.0]
[1746735018776,4.71939484,2119.0,2118.5,4.51091275]
[1746735019103,4.71853914,2119.3,2118.5,4.51091275]
[1746735019300,4.71942051,2119.0,2118.6,1.04904665]
[1746735019505,4.71942051,2119.0,2118.7,16.25]
[1746735019803,4.71942051,2119.0,2118.8,0.04719138]
[1746735019804,6.05502989,2118.9,2118.8,0.04719138]
[1746735019986,4.7212124,2118.1,2118.0,0.826]
[1746735020385,0.55,2118.3,2117.7,0.826]
[1746735020567,4.72145396,2118.0,2117.7,0.826]
[1746735020896,4.72188119,2117.8,2117.7,0.826]
[1746735021064,0.55,2118.0,2117.4,1.1462]
[1746735021266,4.72255017,2117.5,2117.4,1.1462]
[1746735023815,4.72175738,2117.9,2117.4,8.86888146]
[1746735023982,0.55,2118.2,2117.5,0.04721872]
[1746735024185,4.72098951,2118.2,2117.4,1.1462]
[1746735024371,0.55,2118.1,2117.4,1.1462]
[1746735024571,4.7224627,2117.6,2117.4,1.1462]
[1746735024774,4.72255017,2117.5,2117.4,0.39]
[1746735025218,4.72198345,2117.8,2117.4,0.39]
[1746735025509,4.72255017,2117.5,2117.4,0.39]
[1746735025671,4.7224573,2117.6,2117.4,0.39]
[1746735026470,4.72255017,2117.5,2117.4,0.39]
[1746735026812,4.72245925,2117.6,2117.4,0.39]
[1746735028205,4.72255017,2117.5,2117.4,0.39]
[1746735029811,4.72165523,2118.0,2117.4,0.39]
[1746735029973,4.72224262,2117.7,2117.4,0.39]
[1746735030171,9.44456452,2117.7,2117.4,16.64]
[1746735030412,4.72254754,2117.6,2117.4,16.64]
[1746735030607,4.72255017,2117.5,2117.4,16.64]
[1746735031409,4.72243017,2117.6,2117.4,16.64]
[1746735031615,4.7219867,2117.8,2117.4,16.64]
[1746735031772,0.15944683,2117.7,2117.4,16.64]
[1746735031977,4.72211294,2117.7,2117.4,16.64]
[1746735032195,0.14734987,2117.6,2117.4,16.64]
[1746735032724,4.7212124,2118.1,2117.4,16.64]
[1746735032924,0.14708066,2117.5,2117.4,0.39]
[1746735034502,4.72255017,2117.5,2117.4,0.39]
[1746735034705,4.86927613,2117.5,2117.4,0.39]
[1746735035391,5.44624861,2117.5,2117.4,0.39]
[1746735036393,4.86927613,2117.5,2117.4,0.39]
[1746735038531,0.14672596,2117.5,2117.4,0.39]
[1746735038728,0.14672596,2117.5,2117.4,16.64]
[1746735039028,0.12104965,2117.5,2117.4,22.12655608]
[1746735039232,4.72200694,2117.8,2117.4,21.56688179]
[1746735039396,0.12165906,2117.7,2117.4,21.56688179]
[1746735039598,4.72200694,2117.8,2117.4,16.84412571]
[1746735039799,5.309,2118.1,2117.4,17.26602872]
[1746735039800,0.12165906,2117.7,2117.4,17.26602872]
[1746735040001,4.72198874,2117.8,2117.5,16.08032571]
[1746735040201,4.84441605,2117.7,2117.5,16.08032571]
[1746735040440,4.72232716,2117.6,2117.5,16.08032571]
[1746735040813,4.84407171,2117.6,2117.5,16.50222872]
[1746735041332,0.12174455,2117.6,2117.5,21.22883159]
[1746735041839,4.72174075,2117.9,2117.5,21.37645405]
[1746735042036,0.12242475,2117.8,2117.5,21.22883159]
[1746735042223,0.12242475,2117.8,2117.6,0.42190301]
[1746735042599,4.72175698,2117.9,2117.6,0.42190301]
[1746735042823,0.12249568,2117.8,2117.6,0.42190301]
[1746735043233,0.7553,2118.3,2117.6,3.56951764]
[1746735043535,0.12364293,2118.2,2118.0,4.72122228]
[1746735043705,0.12364293,2118.2,2118.1,5.14311541]
[1746735043904,4.72020797,2118.6,2118.1,11.25311541]
[1746735044101,4.72076665,2118.3,2118.2,0.14757447]
[1746735044421,0.1137014,2118.3,2118.1,5.1429168]
[1746735044612,4.7202251,2118.6,2118.2,4.72098951]
[1746735044811,4.83490223,2118.5,2118.0,7.72127864]
[1746735045014,4.7205438,2118.4,2118.3,0.4216395]
[1746735045212,6.26447513,2118.4,2118.3,0.4216395]
[1746735045403,4.83692672,2118.4,2118.3,0.4216395]
[1746735045816,4.72088063,2118.3,2117.9,0.56923066]
[1746735046109,4.83692672,2118.4,2117.9,0.56923066]
[1746735046110,4.72143531,2118.0,2117.9,0.56923066]
[1746735046298,0.11577404,2118.2,2117.9,0.4216395]
[1746735046500,0.11516505,2118.0,2117.9,0.4216395]
[1746735046737,4.72088822,2118.3,2117.9,0.4216395]
[1746735046951,4.72054853,2118.4,2118.0,1.1951395]
[1746735047101,4.7210801,2118.2,2118.0,1.1951395]
[1746735047306,4.72070389,2118.4,2118.0,1.1951395]
[1746735047515,4.72038092,2118.5,2118.0,1.1951395]
[1746735047716,4.72080206,2118.3,2118.0,2.7037895]
[1746735047937,4.72039313,2118.5,2118.0,1.34272857]
[1746735048138,4.7205402,2118.5,2118.1,4.72117218]
[1746735048347,4.71997248,2118.7,2118.2,5.18981612]
[1746735048550,4.72018977,2118.6,2118.2,0.4216395]
[1746735048914,4.72019474,2118.6,2118.2,5.2901599]
[1746735049227,4.71853914,2119.3,2118.3,5.14240316]
[1746735049401,4.71898447,2119.1,2118.6,0.7855]
[1746735049600,4.71809389,2119.5,2118.7,20.80010931]
[1746735049903,4.71931327,2119.0,2118.8,0.4216395]
[1746735050099,4.71942989,2118.9,2118.8,0.4216395]
[1746735050532,4.71916923,2119.1,2118.8,0.4216395]
[1746735050719,4.71888895,2119.2,2118.8,0.4216395]
[1746735050922,4.7183165,2119.4,2118.8,0.4216395]
[1746735051126,4.71942989,2118.9,2118.8,0.4216395]
[1746735052814,4.71938466,2119.0,2118.8,0.4216395]
[1746735053006,4.71942989,2118.9,2118.8,0.4216395]
[1746735053725,4.71965263,2118.8,2118.7,16.08032571]
[1746735054032,4.71965263,2118.8,2118.7,6.11]
[1746735055134,5.66356088,2118.8,2118.7,6.11]
[1746735057116,4.71987539,2118.7,2118.6,6.11]
[1746735057542,4.83259145,2118.7,2118.6,6.11]
[1746735058253,0.11271606,2118.7,2118.6,6.11]
[1746735058546,4.71987539,2118.7,2118.6,6.11]
[1746735058712,4.83259145,2118.7,2118.6,6.11]
[1746735059414,0.11271606,2118.7,2118.6,6.11]
[1746735059644,4.71978289,2118.8,2118.6,6.11]
[1746735059815,4.83356144,2118.7,2118.6,6.11]
[1746735060524,4.83356144,2118.7,2118.6,32.18925659]
[1746735060525,0.11368605,2118.7,2118.6,32.18925659]
[1746735060839,4.71899401,2119.1,2118.7,7.71981639]
[1746735061015,0.11491719,2119.0,2118.8,0.04719111]
[1746735061349,4.71899401,2119.1,2118.8,0.04719111]
[1746735061812,3.8299,2119.1,2118.3,0.7762]
[1746735062017,4.72028516,2118.6,2118.3,0.7762]
[1746735062352,0.11425814,2118.5,2118.4,16.25]
[1746735062763,4.71999327,2118.7,2118.4,16.25]
[1746735063064,5.10221545,2119.0,2118.3,0.7762]
[1746735063231,4.83497558,2118.9,2118.3,0.7762]
[1746735063568,9.44062797,2118.6,2118.3,0.7762]
[1746735063872,0.11418729,2118.5,2118.3,0.7762]
[1746735064377,4.83455261,2118.5,2118.4,16.25]
[1746735064557,4.72098951,2118.2,2118.1,16.25]
[1746735064946,4.83387417,2118.2,2118.1,16.25]
[1746735066064,0.11288466,2118.2,2118.1,16.25]
[1746735066272,4.72026843,2118.6,2118.1,17.875]
[1746735066568,4.71965263,2118.8,2118.1,16.25]
[1746735066752,4.83432565,2118.5,2118.1,16.25]
[1746735066957,4.72056268,2118.4,2118.1,16.25]
[1746735067265,0.11639697,2118.4,2118.1,16.25]
[1746735067463,0.11639697,2118.4,2118.1,20.97119267]
[1746735068135,0.11639697,2118.4,2118.1,16.25]
[1746735068544,4.7202243,2118.6,2118.2,0.04720464]
[1746735068749,0.11570323,2118.3,2118.2,0.04720464]
[1746735068934,4.7202243,2118.6,2118.2,0.04720464]
[1746735069266,5.49154079,2118.9,2118.1,7.72107777]
[1746735069466,1.22683701,2118.8,2118.1,7.72107777]
[1746735069667,1.22683701,2118.8,2117.8,0.36251817]
[1746735069870,4.72041041,2118.5,2118.0,4.7212292]
[1746735070066,0.11502582,2118.4,2118.1,4.76835879]
[1746735070370,3.15767023,2119.2,2118.4,4.72042444]
[1746735070668,3.15767023,2119.2,2118.5,16.29719932]
[1746735070669,4.71911908,2119.1,2118.5,16.29719932]
[1746735070871,0.8153,2119.2,2118.6,4.72001405]
[1746735071077,4.71898244,2119.2,2118.7,9.48670468]
[1746735071232,4.71898244,2119.2,2118.7,4.76694067]
[1746735071566,0.8153,2119.5,2118.8,5.53443488]
[1746735071767,4.71820426,2119.5,2119.0,4.71905816]
[1746735071984,24.88256121,2119.6,2119.1,21.01613414]
[1746735072152,7.87556121,2119.6,2119.1,20.96884338]
[1746735072348,3.15767023,2119.6,2119.1,23.06578965]
[1746735072537,4.83739854,2119.5,2119.1,18.34688434]
[1746735072737,4.837387,2119.5,2119.2,0.7697]
[1746735072937,4.7183332,2119.4,2119.2,0.7697]
[1746735073137,0.11918422,2119.5,2119.1,16.25]
[1746735073352,0.11878891,2119.3,2119.1,16.25]
[1746735073557,3.15767023,2119.6,2119.2,3.04718443]
[1746735073747,3.15767023,2119.6,2119.5,7.71809389]
[1746735073983,3.15767023,2120.2,2119.8,4.71733555]
[1746735074340,7.87425978,2120.2,2119.7,20.96753149]
[1746735074537,4.71678384,2120.1,2119.7,16.25]
[1746735074738,4.71699238,2120.0,2119.7,16.25]
[1746735074955,3.15767023,2120.2,2119.6,0.3586844]
[1746735075159,7.87430237,2120.2,2119.7,4.76479814]
[1746735075360,4.71698113,2120.0,2119.6,0.92923844]
[1746735075556,0.7981,2120.1,2119.5,5.164]
[1746735075759,4.71757931,2119.8,2119.5,5.164]
[1746735075945,4.71763023,2119.8,2119.5,5.164]
[1746735076284,4.71787129,2119.6,2119.5,5.164]
[1746735076446,4.71778399,2119.7,2119.5,5.164]
[1746735076637,4.71778399,2119.7,2119.3,5.156]
[1746735076842,4.71787143,2119.6,2119.3,5.156]
[1746735078390,4.71787935,2119.6,2119.3,5.156]
[1746735078579,4.7181593,2119.5,2119.3,5.156]
[1746735079251,4.7181593,2119.5,2119.3,5.148]
[1746735079574,4.71802519,2119.6,2119.3,5.148]
[1746735080496,4.71810852,2119.5,2119.3,5.148]
[1746735080796,4.71853914,2119.3,2119.2,6.11]
[1746735081091,4.71825094,2119.5,2119.1,5.144]
[1746735081404,4.71825094,2119.5,2119.1,5.143]
[1746735081746,21.71593539,2120.5,2119.3,6.02220014]
[1746735081958,21.71593539,2120.5,2119.6,6.02220014]
[1746735081959,0.7796,2120.4,2119.6,6.02220014]
[1746735082157,4.7165476,2120.2,2119.7,4.76462794]
[1746735082383,0.7796,2120.4,2119.8,5.14]
[1746735082686,4.71706846,2120.0,2119.8,5.14]
[1746735082884,4.71720364,2119.9,2119.8,5.14]
[1746735083298,4.71720364,2119.9,2119.4,0.8319]
[1746735083452,4.71809389,2119.5,2119.3,5.137]
[1746735083654,4.7183165,2119.4,2119.3,5.137]
[1746735084987,0.55,2119.3,2118.1,0.8046]
[1746735085204,3.0,2119.1,2118.1,0.8046]
[1746735085490,3.0,2119.1,2118.1,5.52565133]
[1746735085688,4.71997784,2118.7,2118.2,4.72097509]
[1746735085853,3.7992,2119.2,2118.1,5.9346]
[1746735085854,4.72068664,2118.4,2118.1,5.9346]
[1746735086058,4.7204321,2118.5,2118.1,7.61745791]
[1746735086471,4.71987539,2118.7,2118.1,5.48745791]
[1746735086678,7.71898447,2119.1,2118.1,5.48745791]
[1746735087056,4.72066824,2118.4,2118.1,5.8490462]
[1746735087270,4.72043743,2118.5,2118.1,5.48745791]
[1746735087481,0.10142559,2118.4,2118.1,2.48745791]
[1746735087656,0.10142559,2118.4,2118.1,5.48745791]
[1746735087855,0.10142559,2118.4,2118.1,2.48745791]
[1746735088055,4.821975,2118.4,2118.1,5.48745791]
[1746735088479,0.10142559,2118.4,2118.1,5.48745791]
[1746735088881,4.72076665,2118.3,2118.1,0.8046]
[1746735089090,0.09993166,2118.2,2118.1,0.8046]